bitfinex-derivatives/quotes_SOLF0:USTF0_20240816
["timestamp","ask_amount","ask_price","bid_price","bid_amount"]
[1723827164992,5.6,138.1,138.04,52.12]
[1723827165393,3.62,138.09,138.05,3.6207]
[1723827166391,3.6204,138.08,138.04,55.7412]
[1723827166692,0.05510541,138.08,138.06,0.04915832]
[1723827167489,3.6206,138.07,138.02,3.6216]
[1723827167694,3.6206,138.07,138.06,0.04922585]
[1723827168287,3.6209,138.06,138.0,54.8703]
[1723827168483,3.6209,138.06,138.05,0.05440377]
[1723827168692,3.6209,138.06,138.02,3.6217]
[1723827169202,3.621,138.05,138.0,54.8703]
[1723827169498,0.04952998,138.05,138.04,0.04879984]
[1723827169695,0.04952998,138.05,138.0,54.8703]
[1723827170090,0.04952998,138.05,138.03,0.04749494]
[1723827170398,3.67052998,138.05,138.03,0.04749494]
[1723827171393,0.04952998,138.05,138.03,0.04749494]
[1723827172587,3.67062998,138.05,138.03,0.04749494]
[1723827172993,3.6212,138.04,138.03,0.04749494]
[1723827173702,3.67062998,138.05,138.03,0.04749494]
[1723827176397,3.6212,138.04,138.03,0.04749494]
[1723827179097,41.72,138.04,137.85,7.252]
[1723827179299,8.1366,138.03,137.93,43.0935]
[1723827179502,8.1366,138.03,137.95,45.3436]
[1723827179803,8.1366,138.03,137.95,41.72]
[1723827180003,11.75570355,138.03,137.95,41.72]
[1723827180206,0.05276323,138.0,137.98,0.04865964]
[1723827181003,2.7767,138.08,137.99,41.72]
[1723827181204,47.12,138.14,138.04,45.3412]
[1723827181403,1.74562529,138.12,138.04,41.72]
[1723827181594,1.3388,138.12,138.06,41.72]
[1723827182495,6.7899,138.14,138.06,41.72]
[1723827182692,0.04911398,138.1,138.08,41.72]
[1723827183094,0.04911398,138.1,138.08,41.76733664]
[1723827183998,0.04911398,138.1,138.08,0.04733664]
[1723827185710,0.04911398,138.1,138.08,52.21733664]
[1723827186505,0.04911398,138.1,138.09,3.6199]
[1723827189309,1.3414,138.17,138.09,1.3845]
[1723827189611,4.9592,138.17,138.11,52.17]
[1723827189806,1.3414,138.17,138.13,3.6188]
[1723827190006,3.62885542,138.18,138.13,3.6188]
[1723827190311,3.6177,138.18,138.13,55.7888]
[1723827190609,3.6177,138.18,138.14,3.66831666]
[1723827190610,0.05097631,138.17,138.14,3.66831666]
[1723827190918,0.05097631,138.17,138.15,52.17]
[1723827191114,3.67592698,138.22,138.15,57.57]
[1723827191317,3.67592698,138.22,138.16,53.4512]
[1723827191815,1.3578,138.24,138.16,53.4512]
[1723827192115,3.54371866,138.23,138.16,53.4512]
[1723827192318,0.04675818,138.21,138.19,0.05551238]
[1723827192506,0.04675818,138.21,138.12,3.65521782]
[1723827192706,3.6174,138.19,138.14,3.6184]
[1723827193106,0.04675818,138.21,138.14,3.6184]
[1723827193309,52.17,138.22,138.11,54.8125]
[1723827193516,0.40601767,138.21,138.11,54.8125]
[1723827193709,5.80601767,138.21,138.11,54.8125]
[1723827193911,3.6175,138.18,138.13,3.6187]
[1723827194313,0.04911856,138.18,138.15,0.04815097]
[1723827194516,3.65360263,138.17,138.15,0.04815097]
[1723827194715,0.04911856,138.18,138.15,0.04815097]
[1723827194913,3.618,138.17,138.15,0.04815097]
[1723827195316,7.14998479,138.17,138.15,0.04815097]
[1723827195720,0.04911856,138.18,138.15,0.04815097]
[1723827196117,3.6181,138.16,138.15,0.04815097]
[1723827196320,7.17325009,138.16,138.15,0.04815097]
[1723827196519,3.55515009,138.16,138.09,57.57]
[1723827196716,5.4,138.15,138.09,5.4]
[1723827196917,5.4,138.15,138.08,1.296]
[1723827197223,3.6187,138.14,138.09,3.6197]
[1723827197721,3.6187,138.14,138.08,1.296]
[1723827197922,3.6187,138.14,138.1,0.05447968]
[1723827197923,0.05168139,138.13,138.1,0.05447968]
[1723827198410,0.05168139,138.13,138.1,3.67397968]
[1723827199226,0.05168139,138.13,138.11,52.17]
[1723827199713,0.05168139,138.13,138.12,3.6191]
[1723827201126,0.05168139,138.13,138.1,0.05447968]
[1723827201626,0.05168139,138.13,138.1,3.67397968]
[1723827202714,0.05168139,138.13,138.1,0.05447968]
[1723827203119,3.67068139,138.13,138.1,0.05447968]
[1723827204123,3.6191,138.12,138.1,0.05447968]
[1723827204323,0.05168139,138.13,138.1,0.05447968]
[1723827205423,3.6192,138.12,138.1,0.05447968]
[1723827205919,3.6194,138.11,138.1,0.05447968]
[1723827207123,5.43168139,138.13,138.05,41.74]
[1723827207425,5.43168139,138.13,138.03,41.74]
[1723827207621,3.6201,138.09,138.05,41.74]
[1723827207824,7.15511231,138.09,138.05,41.74]
[1723827208024,7.15511231,138.09,138.04,52.11]
[1723827208229,3.6198,138.1,138.04,52.11]
[1723827208422,5.38,138.13,138.04,52.11]
[1723827208625,5.38,138.13,138.05,0.04687989]
[1723827208815,0.05368702,138.08,138.05,0.04687989]
[1723827211424,0.05368702,138.08,138.05,3.66777989]
[1723827212327,0.05368702,138.08,138.05,0.04687989]
[1723827213424,0.05368702,138.08,138.05,3.66757989]
[1723827214021,0.05368702,138.08,138.07,52.11]
[1723827214232,6.6511,138.15,138.07,52.11]
[1723827214428,6.6511,138.15,138.07,55.7303]
[1723827214730,6.6511,138.15,138.07,52.11]
[1723827214932,3.6193,138.12,138.07,52.11]
[1723827215119,3.6193,138.12,138.07,55.7302]
[1723827215521,3.6194,138.11,138.07,55.7302]
[1723827215734,0.0520776,138.11,138.08,0.04727579]
[1723827216130,3.6197,138.1,138.08,0.04727579]
[1723827216929,7.19982845,138.09,138.08,0.04727579]
[1723827217135,3.6199,138.09,138.08,0.04727579]
[1723827217537,7.2480947,138.09,138.08,0.04727579]
[1723827217725,3.6199,138.09,138.08,0.04727579]
[1723827218329,3.6198,138.1,138.08,0.04727579]
[1723827219245,3.6199,138.09,138.08,0.04727579]
[1723827220127,3.6197,138.1,138.08,0.04727579]
[1723827220638,3.6199,138.09,138.08,0.04727579]
[1723827224743,3.63850119,138.1,138.08,0.04727579]
[1723827224947,5.4320776,138.11,138.08,0.04727579]
[1723827225149,3.6196,138.1,138.08,0.04727579]
[1723827225551,5.4320776,138.11,138.08,0.04727579]
[1723827225849,3.6199,138.09,138.08,0.04727579]
[1723827226339,3.6199,138.1,138.08,0.04727579]
[1723827227245,3.6199,138.09,138.08,0.04727579]
[1723827229053,7.19910413,138.09,138.08,0.04727579]
[1723827229553,3.6199,138.09,138.08,0.04727579]
[1723827231352,3.6198,138.1,138.08,0.04727579]
[1723827231653,5.2920776,138.11,138.08,0.04727579]
[1723827232355,0.0520776,138.11,138.08,0.04727579]
[1723827233355,3.6715776,138.11,138.08,0.04727579]
[1723827233853,0.0520776,138.11,138.08,0.04727579]
[1723827234945,3.6198,138.1,138.08,0.04727579]
[1723827235550,3.6199,138.09,138.08,0.04727579]
[1723827239256,3.6198,138.1,138.08,0.04727579]
[1723827239644,0.0520776,138.11,138.08,0.04727579]
[1723827239845,3.6199,138.09,138.08,0.04727579]
[1723827240556,41.69,138.09,137.96,5.24]
[1723827240751,41.69,138.09,137.99,41.69]
[1723827240948,1.3744,138.08,137.98,41.69]
[1723827241558,3.6752723,138.04,138.02,0.04934131]
[1723827241758,0.0538723,138.04,138.02,0.04934131]
[1723827242759,3.6752723,138.04,138.02,0.04934131]
[1723827243761,3.6215,138.03,138.02,0.04934131]
[1723827247860,3.6751723,138.04,138.02,0.04934131]
[1723827248059,0.0538723,138.04,138.02,0.04934131]
[1723827248362,0.0538723,138.04,138.03,41.69]
[1723827250460,0.0538723,138.04,138.02,0.04934131]
[1723827251662,3.6752723,138.04,138.02,0.04934131]
[1723827251864,0.0538723,138.04,138.02,0.04934131]
[1723827252057,3.6215,138.03,138.02,0.04934131]
[1723827254762,0.0538723,138.04,138.02,0.04934131]
[1723827255264,3.6751723,138.04,138.02,0.04934131]
[1723827255660,0.0538723,138.04,138.02,0.04934131]
[1723827257864,3.6215,138.03,138.02,0.04934131]
[1723827258467,7.32798412,138.03,138.02,0.04934131]
[1723827260470,12.48798412,138.03,138.02,0.04934131]
[1723827260774,19.73198412,138.03,138.02,0.04934131]
[1723827261070,12.48798412,138.03,138.02,0.04934131]
[1723827262086,8.86648412,138.03,137.96,43.0846]
[1723827262456,50.55648412,138.03,137.94,45.3136]
[1723827262659,3.6233,137.97,137.92,43.0846]
[1723827262862,41.69,138.01,137.92,43.0846]
[1723827263059,5.16,137.98,137.92,43.0846]
[1723827263267,3.6232,137.97,137.92,46.7089]
[1723827263571,5.2103802,137.98,137.95,0.04745314]
[1723827264370,3.6233,137.96,137.91,41.69]
[1723827264668,3.6233,137.96,137.95,0.05494393]
[1723827264872,3.6237,137.95,137.91,41.69]
[1723827265166,3.6237,137.95,137.94,0.0499661]
[1723827269072,10.8677,137.95,137.94,0.0499661]
[1723827270369,3.6237,137.95,137.94,0.0499661]
[1723827272578,3.6235,137.96,137.94,0.0499661]
[1723827273275,3.6236,137.95,137.94,0.0499661]
[1723827274068,3.6233,137.96,137.94,0.0499661]
[1723827274971,3.6236,137.95,137.94,0.0499661]
[1723827278481,10.8676,137.95,137.94,0.0499661]
[1723827279073,3.6236,137.95,137.94,0.0499661]
[1723827285076,8.7836,137.95,137.94,0.0499661]
[1723827286381,16.0276,137.95,137.94,0.0499661]
[1723827288182,19.68601179,137.95,137.94,0.0499661]
[1723827288586,16.0276,137.95,137.94,0.0499661]
[1723827288782,19.74294556,137.95,137.94,0.0499661]
[1723827288987,16.0276,137.95,137.94,0.0499661]
[1723827289997,32.7376,137.95,137.94,0.0499661]
[1723827295409,3.6247,137.91,137.88,1.368]
[1723827296508,3.67725461,137.91,137.88,1.41996045]
[1723827301412,3.6249,137.9,137.88,0.05196045]
[1723827302218,3.67735461,137.91,137.88,0.05196045]
[1723827302719,0.05255461,137.91,137.89,16.71]
[1723827303009,0.05255461,137.91,137.9,1.3938]
[1723827303210,66.84,138.0,137.9,18.1038]
[1723827303516,5.08,137.96,137.9,18.1038]
[1723827303697,21.79,137.96,137.9,1.3938]
[1723827304106,25.33424584,137.96,137.9,1.3938]
[1723827304617,16.71,137.94,137.87,5.08]
[1723827304808,16.71,137.94,137.87,16.71]
[1723827305000,16.76430376,137.94,137.87,16.71]
[1723827305205,3.6241,137.93,137.92,0.04625926]
[1723827305405,0.05430376,137.94,137.92,0.04625926]
[1723827305704,3.67820376,137.94,137.88,20.3352]
[1723827305904,0.05430376,137.94,137.89,16.71]
[1723827306415,16.76430376,137.94,137.92,0.05141947]
[1723827306914,3.6242,137.93,137.92,0.05141947]
[1723827310011,20.3342,137.93,137.92,0.05141947]
[1723827311207,3.6254,137.89,137.85,2.704]
[1723827311407,0.05430376,137.94,137.85,2.704]
[1723827311408,21.79,137.9,137.85,2.704]
[1723827311710,29.034,137.9,137.85,2.704]
[1723827312011,32.659,137.9,137.85,2.704]
[1723827313016,0.04664245,137.89,137.86,0.04666852]
[1723827313317,20.38184245,137.89,137.86,0.04666852]
[1723827313614,3.6275,137.8,137.73,3.6294]
[1723827313819,5.08,137.8,137.73,1.2968]
[1723827314006,16.71,137.78,137.73,4.93352444]
[1723827314312,16.71,137.78,137.73,1.2968]
[1723827314512,20.36714978,137.78,137.73,1.2968]
[1723827315119,16.71,137.77,137.74,0.05200411]
[1723827315304,21.79,137.76,137.74,0.05200411]
[1723827315611,21.79,137.76,137.65,3.6313]
[1723827315810,16.71,137.7,137.62,16.71]
[1723827316113,41.83,137.68,137.61,2.696]
[1723827316411,41.83,137.68,137.57,45.49259413]
[1723827316412,41.83,137.64,137.57,3.66259413]
[1723827316604,5.08,137.63,137.51,2.696]
[1723827316810,5.08,137.63,137.54,41.83]
[1723827317017,5.08,137.63,137.54,45.4210917]
[1723827317416,41.83,137.62,137.51,2.696]
[1723827317622,41.83,137.62,137.52,41.83]
[1723827318306,45.41310665,137.64,137.56,41.83]
[1723827318616,5.12,137.63,137.59,0.04580192]
[1723827319115,8.67826039,137.63,137.59,0.04580192]
[1723827319312,41.83,137.62,137.59,0.04580192]
[1723827319712,3.6328,137.6,137.59,0.04580192]
[1723827320012,1.331,137.67,137.59,0.04580192]
[1723827320317,3.6321,137.63,137.59,0.04580192]
[1723827320912,3.6322,137.63,137.59,0.04580192]
[1723827321205,0.05455158,137.62,137.59,0.04580192]
[1723827321406,5.17455158,137.62,137.59,0.04580192]
[1723827321817,0.05455158,137.62,137.59,0.04580192]
[1723827322011,0.05455158,137.62,137.6,41.83]
[1723827322206,5.12,137.65,137.61,41.83]
[1723827322409,5.12,137.7,137.61,41.83]
[1723827322627,1.3934,137.73,137.65,41.83]
[1723827322628,6.5134,137.73,137.65,41.83]
[1723827323015,3.6297,137.72,137.67,41.83]
[1723827323315,5.12,137.73,137.67,41.83]
[1723827323512,3.6297,137.72,137.67,41.83]
[1723827323719,5.12,137.73,137.69,41.83]
[1723827323913,1.3567,137.77,137.71,41.83]
[1723827324611,3.6288,137.75,137.71,41.83]
[1723827324804,10.07273274,137.78,137.71,41.83]
[1723827325012,8.69403274,137.78,137.71,41.83]
[1723827325320,0.04826901,137.75,137.71,41.83]
[1723827325916,0.04826901,137.75,137.7,52.3]
[1723827327413,0.04826901,137.75,137.61,1.3877]
[1723827327414,0.04826901,137.75,137.68,52.3]
[1723827327921,0.04826901,137.75,137.72,0.0557107]
[1723827328821,3.6295,137.73,137.72,0.0557107]
[1723827329114,5.12,137.78,137.66,55.9311]
[1723827329315,3.6297,137.72,137.66,52.3]
[1723827329915,3.6295,137.73,137.66,55.9312]
[1723827330319,57.42,137.78,137.68,3.6305]
[1723827330511,0.05591604,137.71,137.68,52.35057798]
[1723827331222,3.6288,137.75,137.68,55.9306]
[1723827331520,5.12,137.78,137.7,52.3]
[1723827331713,0.05265767,137.71,137.7,52.3]
[1723827332421,0.05349473,137.72,137.7,52.3]
[1723827336019,0.05349473,137.72,137.69,0.05180851]
[1723827337015,0.05349473,137.72,137.69,52.35180851]
[1723827337420,0.05349473,137.72,137.71,52.3]
[1723827338012,5.12,137.76,137.71,52.3]
[1723827338214,2.7332,137.84,137.74,52.3]
[1723827338419,5.12,137.83,137.76,52.3]
[1723827338628,3.6278,137.79,137.76,52.3]
[1723827339028,3.56050072,137.82,137.76,52.3]
[1723827339226,0.04597085,137.79,137.76,52.34995286]
[1723827340223,0.04597085,137.79,137.76,0.04995286]
[1723827340632,3.6283,137.77,137.76,0.04995286]
[1723827340930,0.04597085,137.79,137.76,0.04995286]
[1723827341721,3.6282,137.78,137.76,0.04995286]
[1723827342234,0.04597085,137.79,137.76,3.67855286]
[1723827342422,0.04597085,137.79,137.76,0.04995286]
[1723827342729,0.04597085,137.79,137.78,52.3]
[1723827343437,0.04597085,137.79,137.77,52.3]
[1723827343727,198.49274422,138.08,137.77,52.3]
[1723827343922,198.49274422,138.08,137.76,0.04995286]
[1723827343923,3.6264,137.85,137.82,52.3]
[1723827344124,7.23682921,137.85,137.79,55.9276]
[1723827344629,52.70775459,137.84,137.74,1.3614]
[1723827344828,0.0475803,137.8,137.78,0.05327628]
[1723827345030,3.628,137.79,137.78,0.05327628]
[1723827346930,8.7952803,137.8,137.78,0.05327628]
[1723827347132,5.1675803,137.8,137.78,0.05327628]
[1723827347523,0.0475803,137.8,137.78,0.05327628]
[1723827347823,0.0475803,137.8,137.79,52.3]
[1723827348326,0.0475803,137.8,137.78,0.05327628]
[1723827352131,3.6752803,137.8,137.78,0.05327628]
[1723827352437,0.0475803,137.8,137.78,0.05327628]
[1723827353240,3.6278,137.79,137.78,0.05327628]
[1723827354439,3.6751803,137.8,137.78,0.05327628]
[1723827355343,0.0475803,137.8,137.78,0.05327628]
[1723827355833,3.6751803,137.8,137.78,0.05327628]
[1723827357334,0.0475803,137.8,137.78,0.05327628]
[1723827357637,3.6278,137.79,137.78,0.05327628]
[1723827358336,3.6752803,137.8,137.78,0.05327628]
[1723827358537,0.0475803,137.8,137.78,0.05327628]
[1723827358948,3.6751803,137.8,137.78,0.05327628]
[1723827359641,0.0475803,137.8,137.78,0.05327628]
[1723827360434,0.0475803,137.8,137.78,52.35327628]
[1723827361733,7.9495,137.88,137.78,52.35327628]
[1723827361938,3.7060473,137.86,137.85,52.3]
[1723827362735,3.6253,137.89,137.85,52.3]
[1723827362931,5.26,137.91,137.83,52.3]
[1723827363337,5.26,137.91,137.84,0.05587968]
[1723827363338,0.05157554,137.87,137.84,0.05587968]
[1723827363734,3.67737554,137.87,137.84,0.05587968]
[1723827364736,3.59636373,137.86,137.84,0.05587968]
[1723827365336,7.22246373,137.86,137.84,0.05587968]
[1723827365734,0.05157554,137.87,137.84,0.05587968]
[1723827365934,5.26,137.86,137.84,0.05587968]
[1723827366147,3.6262,137.85,137.84,0.05587968]
[1723827367144,15.25587431,137.86,137.84,0.05587968]
[1723827367340,2.6733,137.86,137.84,0.05587968]
[1723827367636,5.26,137.85,137.84,0.05587968]
[1723827368049,8.8862,137.85,137.84,0.05587968]
[1723827368437,5.26,137.85,137.84,0.05587968]
[1723827372049,8.8862,137.85,137.84,0.05587968]
[1723827372247,5.26,137.85,137.84,0.05587968]
[1723827372550,5.26,137.85,137.77,52.3]
[1723827373048,3.6269,137.83,137.77,55.9282]
[1723827373839,0.05315014,137.81,137.79,0.05160783]
[1723827376155,3.6269,137.83,137.79,0.05160783]
[1723827376156,3.6253,137.89,137.83,3.6266]
[1723827376446,226.0,137.97,137.84,1.3455]
[1723827376447,5.26,137.94,137.84,1.3455]
[1723827376649,3.63184209,137.95,137.9,52.3]
[1723827376952,226.0,137.97,137.9,52.3]
[1723827376953,5.26,137.97,137.9,52.3]
[1723827377246,277.74749953,138.03,137.86,57.56]
[1723827377247,277.74749953,138.03,137.94,52.3]
[1723827377457,52.3,138.02,137.92,52.3]
[1723827377845,1.4002,138.01,137.92,52.3]
[1723827378242,3.623,137.98,137.92,52.3]
[1723827378442,5.4,137.98,137.92,52.3]
[1723827378643,52.3538884,137.95,137.87,5.4]
[1723827378948,1.4002,137.94,137.87,5.4]
[1723827379147,5.4,137.93,137.83,52.3]
[1723827379443,5.4,137.93,137.83,55.9266]
[1723827379648,5.4,137.93,137.85,52.3]
[1723827379849,5.4,137.93,137.87,52.3]
[1723827380052,5.4,137.93,137.8,55.87086974]
[1723827380053,5.4,137.94,137.89,52.3]
[1723827380353,5.4,137.94,137.85,2.7979]
[1723827380354,5.4,137.94,137.92,52.3]
[1723827380549,0.0538884,137.95,137.92,52.3]
[1723827380843,3.59663786,138.02,137.94,52.3]
[1723827381651,7.244,138.02,137.94,52.3]
[1723827381848,10.8658,138.02,137.95,66.2335]
[1723827382247,3.6218,138.02,137.95,66.2335]
[1723827382748,12.65621301,138.03,137.95,66.2335]
[1723827383061,0.04808779,137.99,137.95,66.2335]
[1723827383445,0.04808779,137.99,137.95,62.61]
[1723827384042,0.04808779,137.99,137.98,62.61]
[1723827384349,29.02,138.06,137.98,62.61]
[1723827384554,3.61913953,138.11,138.01,62.61]
[1723827384755,226.0,138.22,138.01,62.61]
[1723827384756,5.4,138.13,138.01,62.61]
[1723827384951,71.58780807,138.13,138.01,62.61]
[1723827385254,62.61,138.11,137.99,63.9109]
[1723827385757,3.6209,138.06,137.99,63.9109]
[1723827385943,12.62096262,138.06,137.99,63.9109]
[1723827386258,5.4,138.06,137.99,67.5332]
[1723827387143,0.05040871,138.08,138.04,62.61]
[1723827387649,0.05040871,138.08,138.06,62.61]
[1723827387850,5.4,138.12,138.06,62.61]
[1723827388055,3.57780807,138.13,138.03,62.61]
[1723827388252,5.4,138.14,138.03,62.61]
[1723827388946,3.6195,138.11,138.04,3.621]
[1723827389355,8.95911988,138.14,138.03,62.61]
[1723827389551,0.04757673,138.1,138.04,1.3532]
[1723827390158,0.04757673,138.1,138.06,0.05516477]
[1723827390354,0.04757673,138.1,138.06,62.66516477]
[1723827391363,0.04757673,138.1,138.06,66.28576477]
[1723827391847,0.04757673,138.1,138.07,3.6204]
[1723827392046,0.04757673,138.1,138.08,62.61]
[1723827392591,0.04757673,138.1,138.06,0.05516477]
[1723827392592,0.04757673,138.1,138.06,66.28576477]
[1723827393257,0.04757673,138.1,138.06,62.66516477]
[1723827393454,0.04757673,138.1,138.08,62.61]
[1723827393845,0.04757673,138.1,138.06,62.66516477]
[1723827396460,0.04757673,138.1,138.08,62.61]
[1723827398066,8.9985,138.15,138.09,3.6199]
[1723827398454,8.9985,138.15,138.1,62.61]
[1723827398656,3.6186,138.14,138.08,3.6201]
[1723827399055,5.38,138.15,138.07,2.7009]
[1723827399362,0.05100879,138.12,138.1,62.66555228]
[1723827401862,0.05100879,138.12,138.1,0.05555228]
[1723827402266,3.6194,138.11,138.1,0.05555228]
[1723827402568,0.40638553,138.11,138.04,53.5332]
[1723827402759,3.6203,138.08,138.04,53.5332]
[1723827402956,0.40638553,138.07,138.04,53.5332]
[1723827403469,3.6198,138.1,138.06,52.18]
[1723827403667,0.40668865,138.09,138.06,52.18]
[1723827403870,0.0500676,138.07,138.06,52.18]
[1723827405863,0.40674261,138.09,138.06,52.18]
[1723827406059,5.38,138.11,138.06,52.18]
[1723827406366,0.40657086,138.1,138.06,52.18]
[1723827406565,0.40657086,138.1,138.08,52.18]
[1723827406753,5.38,138.14,138.08,52.18]
[1723827406954,0.40646412,138.13,138.08,52.18]
[1723827407163,0.04707015,138.12,138.1,0.04837239]
[1723827408164,0.04707015,138.12,138.1,52.22837239]
[1723827408365,0.04707015,138.12,138.11,1.3282]
[1723827409971,3.6194,138.11,138.1,0.04837239]
[1723827410270,0.04707015,138.12,138.1,0.04837239]
[1723827411369,5.54707015,138.12,138.1,0.04837239]
[1723827411568,3.6194,138.11,138.1,0.04837239]
[1723827413984,9.1194,138.11,138.1,0.04837239]
[1723827414291,5.5,138.11,138.1,0.04837239]
[1723827414891,9.1194,138.11,138.1,0.04837239]
[1723827417984,5.5,138.11,138.03,52.18]
[1723827419189,3.6205,138.07,138.06,0.05327616]
[1723827419390,7.29739094,138.07,138.06,0.05327616]
[1723827424692,7.29739094,138.07,138.01,52.18]
[1723827424693,3.67689094,138.07,138.01,52.18]
[1723827424899,5.5,138.06,138.0,1.3534]
[1723827425196,3.6214,138.04,138.0,1.3534]
[1723827425594,5.5,138.06,138.0,1.3534]
[1723827426494,5.5,138.05,138.01,52.18]
[1723827426717,0.05343927,138.03,138.01,52.22680639]
[1723827427191,0.05343927,138.03,138.01,55.84860639]
[1723827428192,0.05343927,138.03,138.01,52.22680639]
[1723827430394,0.05343927,138.03,138.01,55.84870639]
[1723827430694,0.05343927,138.03,138.01,52.22680639]
[1723827431599,5.5,138.09,138.01,52.22680639]
[1723827431802,2.7424,138.14,138.07,52.18]
[1723827432001,3.6193,138.12,138.07,55.8003]
[1723827432197,5.5,138.13,138.1,52.18]
[1723827432499,9.05606812,138.13,138.1,52.18]
[1723827433099,9.11050484,138.13,138.1,52.2321208]
[1723827433499,0.05443672,138.13,138.1,52.2321208]
[1723827434299,0.05443672,138.13,138.1,55.8516208]
[1723827434803,0.05443672,138.13,138.12,52.18]
[1723827435197,3.6238131,138.16,138.12,52.18]
[1723827435398,5.5,138.19,138.12,52.18]
[1723827435707,5.5,138.19,138.12,55.799]
[1723827435708,9.07692486,138.19,138.12,55.799]
[1723827435903,3.6176,138.18,138.12,52.18]
[1723827436206,9.07692486,138.19,138.14,52.18]
[1723827436603,5.5,138.22,138.15,4.9356]
[1723827437000,0.05204218,138.16,138.15,6.2254]
[1723827437203,3.56859885,138.2,138.16,55.798]
[1723827437392,3.61312489,138.2,138.19,52.18]
[1723827437594,3.61312489,138.2,138.1,1.376]
[1723827437595,3.6188,138.14,138.1,1.376]
[1723827437796,8.90729213,138.15,138.1,1.376]
[1723827437996,5.36,138.16,138.1,1.376]
[1723827438401,8.6235,138.21,138.12,52.18]
[1723827438606,5.36,138.18,138.12,52.18]
[1723827438798,52.18,138.22,138.12,55.84886373]
[1723827439107,0.02616994,138.14,138.12,55.84886373]
[1723827439406,7.244,138.17,138.13,3.6188]
[1723827439706,52.18,138.24,138.14,52.18]
[1723827439707,5.36,138.22,138.14,52.18]
[1723827440007,3.6172,138.2,138.14,52.18]
[1723827440211,5.36,138.22,138.14,55.7984]
[1723827440406,3.6169,138.21,138.15,1.2829]
[1723827440917,2.7115,138.25,138.16,52.18]
[1723827441097,5.36,138.25,138.17,1.3472]
[1723827441296,5.36,138.25,138.19,52.18]
[1723827441707,8.9758,138.25,138.19,52.18]
[1723827442107,5.36,138.25,138.19,52.18]
[1723827442513,5.36,138.25,138.21,52.18]
[1723827442717,307.14,138.32,138.21,52.18]
[1723827442718,5.36,138.28,138.21,52.18]
[1723827442916,5.36,138.3,138.23,52.18]
[1723827443414,32.49969942,138.32,138.24,5.0208]
[1723827443622,3.53969942,138.32,138.24,5.0208]
[1723827443808,3.6147,138.29,138.24,1.405]
[1723827444111,52.18,138.3,138.22,1.3615]
[1723827444305,3.6151,138.28,138.22,1.3615]
[1723827444513,52.18,138.3,138.22,2.7686]
[1723827444907,3.6154,138.27,138.22,2.7686]
[1723827445112,3.6154,138.27,138.25,0.05405091]
[1723827445504,3.6155,138.26,138.25,0.05405091]
[1723827446113,52.18,138.26,138.15,2.6696]
[1723827446415,52.18,138.24,138.15,2.6696]
[1723827446613,5.34,138.23,138.15,2.6696]
[1723827446826,7.244,138.26,138.17,52.18]
[1723827447113,8.9553,138.27,138.2,52.18]
[1723827447313,8.9553,138.27,138.21,1.2794]
[1723827447510,8.9553,138.27,138.21,7.5712]
[1723827447706,0.04970163,138.23,138.21,7.5712]
[1723827448106,0.04970163,138.23,138.21,3.9546]
[1723827448315,3.615,138.28,138.22,52.18]
[1723827448906,3.6152,138.27,138.22,52.18]
[1723827449909,3.6152,138.27,138.22,55.7964]
[1723827450412,3.6152,138.27,138.23,0.04591425]
[1723827451211,3.6155,138.26,138.23,0.04591425]
[1723827452518,5.34,138.29,138.23,0.04591425]
[1723827453419,5.34,138.29,138.23,3.66211425]
[1723827453621,3.6151,138.28,138.23,3.66211425]
[1723827455716,8.9548,138.29,138.24,3.6159]
[1723827455920,8.9548,138.29,138.24,55.7959]
[1723827456111,8.97658985,138.32,138.24,52.18]
[1723827456419,3.6145,138.3,138.25,3.6156]
[1723827457522,5.34,138.32,138.26,3.6154]